fUST/lending_fUST_20251118
["ID","MTS","AMOUNT","RATE_DAILY","PERIOD"]
[394325505,1763453432449,-1200.0,0.0002278,2]
[394325506,1763453432458,-50000.0,0.0002278,2]
[394325507,1763453432467,-501.09463132,0.00022873,2]
[394325508,1763453432476,-505.52981895,0.00022873,2]
[394325509,1763453432485,-500.0,0.00022873,2]
[394325510,1763453432494,-500.0,0.00022873,2]
[394325511,1763453432503,-500.0,0.00022893,2]
[394325512,1763453432516,-500.0,0.00022893,2]
[394325513,1763453432525,-500.0,0.00022893,2]
[394325514,1763453432535,-1000.0,0.00022894,2]
[394325515,1763453432544,-1000.0,0.00022894,2]
[394325516,1763453432553,-1000.0,0.00022894,2]
[394325517,1763453432563,-1000.0,0.00022894,2]
[394325518,1763453432572,-1000.0,0.00022894,2]
[394325519,1763453432582,-1000.0,0.00022894,2]
[394325520,1763453432591,-500.0,0.00022895,2]
[394325521,1763453432601,-500.0,0.00022895,2]
[394325522,1763453432610,-630.07438992,0.00022895,2]
[394325523,1763453432620,-500.0,0.00022895,2]
[394325524,1763453432631,-500.0,0.00022895,2]
[394325525,1763453432651,-500.0,0.00022895,2]
[394325526,1763453432666,-500.0,0.00022895,2]
[394325527,1763453432675,-501.22334387,0.00022895,2]
[394325528,1763453432684,-1000.0,0.00022972,2]
[394325529,1763453432693,-506.98939634,0.00022973,2]
[394325530,1763453432702,-984.32,0.00022996,23]
[394325531,1763453432711,-284.71,0.00023,7]
[394325532,1763453432720,-722.5994432,0.00023204,2]
[394325533,1763453432729,-500.0,0.00023235,2]
[394325534,1763453432739,-1000.0,0.00023235,2]
[394325535,1763453432748,-759.2141109,0.00023236,2]
[394325536,1763453432757,-11642.7075265,0.00023236,2]
[394325537,1763453432767,-500.0,0.00023273,2]
[394325538,1763453432777,-4307.83,0.000233,7]
[394325539,1763453432786,-359.54,0.00023321,2]
[394325540,1763453432796,-155.87086747,0.00023321,2]
[394325541,1763453432805,-1000.0,0.00023421,2]
[394325542,1763453432816,-600.0,0.00023456,20]
[394325543,1763453432825,-500.0,0.00023821,2]
[394325544,1763453432919,-151.0,0.00023968,7]
[394325545,1763453432946,-1500.0,0.00023968,2]
[394325546,1763453432955,-350.66512956,0.00024198,2]
[394325547,1763453432965,-196.32159881,0.00024442,2]
[394325548,1763453432975,-1212.9081546,0.00024516,2]
[394325549,1763453432985,-420.0,0.00024723,2]
[394325550,1763453432994,-420.0,0.00024723,2]
[394325551,1763453433003,-420.0,0.00024733,2]
[394325552,1763453433013,-401.0,0.00024733,2]
[394325553,1763453433024,-1680.0,0.00024734,2]
[394325554,1763453433034,-177.0,0.00024771,2]
[394325555,1763453433043,-1680.0,0.00024838,2]
[394325556,1763453433053,-500.0,0.00024844,2]
[394325557,1763453433063,-500.0,0.00024873,2]
[394325558,1763453433075,-1000.0,0.00024899,2]
[394325559,1763453433087,-8082.52635984,0.000249,2]
[394325560,1763453433097,-172.20147011,0.00025048,2]
[394325561,1763453433106,-595.34929894,0.000253,2]
[394325562,1763453433116,-500.0,0.00025313,2]
[394325563,1763453433125,-501.70908456,0.00025313,2]
[394325564,1763453433134,-508.14239871,0.00025569,2]
[394325565,1763453433145,-542.30935631,0.00025569,2]
[394325566,1763453433154,-500.0,0.00025614,2]
[394325567,1763453433163,-1000.0,0.00025614,2]
[394325568,1763453433172,-11642.7075265,0.00025615,2]
[394325569,1763453433182,-400.77541225,0.00025633,2]
[394325570,1763453433191,-4041.26317992,0.00025663,2]
[394325571,1763453433201,-500.58449928,0.00025673,2]
[394325572,1763453433210,-500.94071383,0.00025673,2]
[394325573,1763453433219,-500.0,0.00025673,2]
[394325574,1763453433228,-500.0,0.00025673,2]
[394325575,1763453433238,-722.5994432,0.00025787,2]
[394325576,1763453433247,-720.0,0.00025802,20]
[394325577,1763453433257,-499.58412256,0.0002586,2]
[394325578,1763453433266,-2648.36645877,0.00025981,2]
[394325579,1763453433275,-759.2141109,0.0002601,2]
[394325580,1763453433285,-1890.01682834,0.00026072,2]
[394325581,1763453433294,-2648.36645877,0.00026139,2]
[394325582,1763453433303,-247.24073531,0.00026221,2]
[394325583,1763453433313,-500.0,0.00026221,2]
[394325584,1763453433327,-605.20770695,0.00026311,2]
[394325585,1763453433337,-1890.01682834,0.00026377,2]
[394325586,1763453433346,-2648.36645879,0.00026555,2]
[394325587,1763453433355,-227.133632,0.00026676,2]
[394325588,1763453433365,-4307.83,0.000267,7]
[394325589,1763453433374,-204.0,0.00026771,2]
[394325590,1763453433383,-587.0,0.00026844,2]
[394325591,1763453433395,-587.0,0.00026844,2]
[394325592,1763453433404,-413.0,0.00026856,2]
[394325593,1763453433414,-2351.0,0.00026857,2]
[394325594,1763453433423,-2351.0,0.00027095,2]
[394325595,1763453433432,-1000.0,0.00027993,2]
[394325596,1763453433441,-11642.7075265,0.00027994,2]
[394325597,1763453433450,-1000.0,0.000282,2]
[394325598,1763453433459,-1000.0,0.000282,2]
[394325599,1763453433469,-1000.0,0.000283,2]
[394325600,1763453433478,-1000.0,0.000283,2]
[394325601,1763453433487,-722.5994432,0.00028371,2]
[394325602,1763453433497,-864.0,0.00028382,30]
[394325603,1763453433507,-231.0,0.00028771,2]
[394325604,1763453433516,-759.2141109,0.00028784,2]
[394325605,1763453433525,-4041.26317992,0.00028906,2]
[394325606,1763453433534,-1000.0,0.00028915,2]
[394325607,1763453433544,-7415.1618845,0.00028916,2]
[394325608,1763453433552,-595.34929894,0.00029128,2]
[394325609,1763453433561,-823.0,0.00029148,2]
[394325610,1763453433573,-823.0,0.00029148,2]
[394325611,1763453433583,-1865.0,0.00029161,2]
[394325612,1763453433592,-284.71,0.000292,7]
[394325613,1763453433601,-151.0,0.00029285,7]
[394325614,1763453433610,-3292.0,0.00029556,2]
[394325615,1763453433619,-150.0,0.00029707,2]
[394325616,1763453433628,-151.0,0.00029817,2]
[394325617,1763453433641,-153.25997971,0.00029817,2]
[394325618,1763453433650,-165.9109687,0.00029817,2]
[394325619,1763453433660,-151.0,0.00029817,2]
[394325620,1763453433669,-151.0,0.00029817,2]
[394325621,1763453433678,-152.33586076,0.00029933,2]
[394325622,1763453433688,-151.0,0.00029954,2]
[394325623,1763453433698,-162.62571034,0.00029973,37]
[394325624,1763453433707,-1000.0,0.00029999,2]
[394325625,1763453433717,-151.0,0.00030091,2]
[394325626,1763453433728,-1001.03903692,0.00030137,14]
[394325627,1763453433737,-153.69344454,0.00030137,14]
[394325628,1763453433746,-163.13815763,0.00030228,2]
[394325630,1763453433755,-152.33586076,0.00030236,20]
[394325631,1763453433764,-151.0,0.00030363,31]
[394325632,1763453433773,-11642.7075265,0.00030373,2]
[394325633,1763453433782,-154.85269585,0.00030387,30]
[394325634,1763453433791,-152.33586076,0.00030538,38]
[394325635,1763453433800,-258.0,0.00030771,2]
[394325636,1763453433809,-152.33586076,0.0003084,56]
[394325637,1763453433820,-722.5994432,0.00030954,2]
[394325638,1763453433830,-151.0,0.00030955,31]
[394325639,1763453433839,-287.755065,0.00030955,31]
[394325640,1763453433848,-151.0,0.00030955,31]
[394325641,1763453433858,-151.0,0.00030955,31]
[394325642,1763453433867,-4307.83,0.00031,7]
[394325643,1763453433876,-150.0,0.00031121,2]
[394325644,1763453433885,-152.33586076,0.00031143,74]
[394325645,1763453433894,-1000.0,0.0003122,30]
[394325646,1763453433903,-240.39572813,0.00031315,2]
[394325647,1763453433913,-152.33586076,0.00031445,92]
[394325648,1763453433922,-759.2141109,0.00031557,2]
[394325649,1763453433931,-154.85269586,0.00031628,2]
[394325650,1763453433940,-1152.0,0.00031649,2]
[394325651,1763453433950,-494.0,0.00031649,3]
[394325652,1763453433959,-152.33586076,0.00031747,110]
[394325653,1763453433969,-207.232,0.00031859,30]
[394325654,1763453433978,-1000.0,0.00031865,2]
[394325655,1763453433993,-3360.95379571,0.00032,3]
[394325656,1763453434002,-4609.0,0.00032242,3]
[394325657,1763453434011,-4041.26317992,0.00032248,2]
[394325658,1763453434020,-150.0,0.00032536,2]
[394325659,1763453434029,-325.695664,0.00032708,2]
[394325660,1763453434038,-285.0,0.00032771,2]
[394325661,1763453434047,-172.20147011,0.0003283,2]
[394325662,1763453434056,-334.64869526,0.00032877,7]
[394325663,1763453434067,-595.34929894,0.00032956,2]
[394325664,1763453434076,-5583.88900854,0.0003299,2]
[394325665,1763453434086,-227.133632,0.00033165,2]
[394325666,1763453434096,-157.84999174,0.000332,117]
[394325667,1763453434106,-217.61701207,0.0003357,4]
[394325668,1763453434115,-172.87,0.00033951,2]
[394325669,1763453434125,-278.65924766,0.00034053,4]
[394325670,1763453434134,-1000.0,0.00034341,2]
[394325671,1763453434143,-1000.0,0.00034342,30]
[394325672,1763453434153,-244.0,0.00034342,30]
[394325673,1763453434162,-1613.0,0.00034365,2]
[394325674,1763453434171,-284.71,0.000344,7]
[394325675,1763453434180,-312.0,0.00034771,120]
[394325676,1763453434190,-6453.0,0.00035171,3]
[394325677,1763453434200,-155.521175,0.00035311,31]
[394325678,1763453434209,-216.08,0.00035365,2]
[394325679,1763453434218,-500.0,0.00035616,2]
[394325680,1763453434227,-500.0,0.00035616,2]
[394325681,1763453434236,-500.0,0.00035616,2]
[394325682,1763453434245,-500.0,0.00035616,2]
[394325683,1763453434255,-500.0,0.00035616,2]
[394325684,1763453434264,-500.0,0.00035616,2]
[394325685,1763453434273,-500.0,0.00035616,2]
[394325686,1763453434281,-500.0,0.00035616,2]
[394325687,1763453434291,-500.0,0.00035616,2]
[394325688,1763453434301,-500.0,0.00035616,2]
[394325689,1763453434311,-500.0,0.00035616,2]
[394325690,1763453434321,-500.0,0.00035616,2]
[394325691,1763453434330,-500.0,0.00035616,2]
[394325692,1763453434339,-4307.83,0.000357,14]
[394325693,1763453434349,-153.68619,0.00036525,31]
[394325694,1763453434358,-241.66018692,0.00036771,120]
[394325695,1763453434367,-259.3,0.0003678,2]
[394325696,1763453434377,-595.34929894,0.00036783,2]
[394325697,1763453434386,-916.83191706,0.00036985,2]
[394325698,1763453434395,-528.39610539,0.00036986,15]
[394325699,1763453434405,-2258.0,0.00037314,2]
[394325700,1763453434417,-1000.0,0.00037776,30]
[394325701,1763453434428,-492.0,0.00037776,30]
[394325702,1763453434439,-151.0,0.00037776,15]
[394325703,1763453434448,-302.52,0.00038195,2]
[394325704,1763453434457,-772.0,0.00038367,5]
[394325705,1763453434467,-8082.52635984,0.00038696,3]
[394325706,1763453434476,-91680.4425859,0.00038706,2]
[394325707,1763453434484,-151.0,0.00038706,120]
[394325708,1763453434494,-172.701613,0.00038706,120]
[394325709,1763453434503,-2325.00000016,0.00038832,4]
[394325710,1763453434515,-4041.26317992,0.00038842,3]
[394325711,1763453434525,-2001.58735229,0.00038852,6]
[394325712,1763453434534,-24284.01608086,0.00038852,7]
[394325713,1763453434543,-245.68,0.000389,14]
[394325714,1763453434552,-157.608964,0.00038983,3]
[394325715,1763453434562,-189.02205947,0.00039142,2]
[394325716,1763453434571,-157.608964,0.00039266,3]
[394325717,1763453434580,-157.608964,0.00039375,2]
[394325718,1763453434589,-284.71,0.000395,7]
[394325719,1763453434598,-157.608964,0.00039549,3]
[394325720,1763453434607,-345.73,0.00039609,2]
[394325721,1763453434616,-227.133632,0.00039654,2]
[394325722,1763453434624,-151.0,0.00039726,2]
[394325723,1763453434634,-157.608964,0.00039832,3]
[394325724,1763453434645,-151.0,0.00039863,2]
[394325725,1763453434655,-151.0,0.0004,2]
[394325726,1763453434666,-1000.0,0.0004,120]
[394325727,1763453434675,-596.900034,0.0004,120]
[394325728,1763453434685,-205.26766153,0.00040078,16]
[394325729,1763453434696,-151.0,0.00040137,2]
[394325730,1763453434705,-257.75149314,0.00040274,2]
[394325731,1763453434714,-633.0,0.00040516,5]
[394325732,1763453434725,-595.94464824,0.00040611,2]
[394325733,1763453434734,-172.37367158,0.00040611,2]
[394325734,1763453434743,-157.608964,0.0004075,2]
[394325735,1763453434753,-200.0,0.00040916,120]
[394325736,1763453434762,-186.5648667,0.00041,120]
[394325737,1763453434771,-192.66708343,0.00041,120]
[394325738,1763453434780,-222.72144839,0.00041,120]
[394325739,1763453434789,-388.95,0.00041024,2]
[394325740,1763453434799,-6377.08071298,0.000414,120]
[394325810,1763453443580,-5000.0,0.00022551,10]
[394325811,1763453443590,-500.0,0.00022779,2]
[394325812,1763453443599,-500.0,0.00022779,2]
[394325813,1763453443608,-306.10000004,0.00022779,2]
[394325814,1763453443619,-193.89999996,0.00022779,2]
[394325815,1763453443628,-187.89023092,0.00022779,2]
[394325816,1763453443638,-500.0,0.00022779,2]
[394325817,1763453443650,-500.0,0.00022779,2]
[394325818,1763453443660,-821.86444649,0.00022779,2]
[394325819,1763453443669,-500.0,0.00022779,2]
[394325820,1763453443678,-188.60690639,0.00022779,2]
[394325821,1763453443689,-500.0,0.00022779,2]
[394325822,1763453443699,-500.0,0.00022779,2]
[394325823,1763453443708,-500.0,0.00022779,2]
[394325824,1763453443717,-500.0,0.00022779,2]
[394325825,1763453443727,-821.86444649,0.00022779,2]
[394325826,1763453443736,-340.85057333,0.00022779,2]
[394325827,1763453443746,-500.0,0.00022779,2]
[394325828,1763453443755,-503.09396678,0.00022779,2]
[394325829,1763453443765,-500.0,0.00022779,2]
[394325830,1763453443774,-500.0,0.00022779,2]
[394325831,1763453443783,-821.86444649,0.00022779,2]
[394325832,1763453443793,-500.0,0.00022779,2]
[394325834,1763453443802,-500.0,0.00022779,2]
[394325837,1763453443811,-138.40623251,0.00022779,2]
[394325853,1763453443966,-361.59376749,0.00022779,2]
[394325854,1763453443975,-821.86444649,0.00022779,2]
[394325855,1763453443984,-500.0,0.00022779,2]
[394325856,1763453443994,-500.0,0.00022779,2]
[394325857,1763453444004,-169.53863362,0.00022779,2]
[394325858,1763453444013,-500.0,0.00022779,2]
[394325859,1763453444022,-821.86444649,0.00022779,2]
[394325860,1763453444032,-500.0,0.00022779,2]
[394325861,1763453444041,-500.0,0.00022779,2]
[394325862,1763453444050,-821.86444649,0.00022779,2]
[394325863,1763453444059,-500.0,0.00022779,2]
[394325864,1763453444069,-231.82125704,0.00022779,2]
[394325872,1763453446598,-268.17874296,0.00022779,2]
[394325873,1763453446607,-500.0,0.00022779,2]
[394325874,1763453446616,-353.29621527,0.00022779,2]
[394325875,1763453446627,-468.56823122,0.00022779,2]
[394325876,1763453446638,-500.0,0.00022779,2]
[394325877,1763453446650,-29.87054364,0.00022779,2]
[394325886,1763453501886,1630.4035087,0.00032877,120]
[394326118,1763454364339,256.508,0.00032877,120]
[394326136,1763454378759,250.0,0.00032877,120]
[394326140,1763454387012,250.0,0.00019,10]
[394326144,1763454402672,250.0,0.00032877,120]
[394326160,1763454433134,-224.84942415,0.00021557,2]
[394326180,1763454437089,-774.15057585,0.00021557,2]
[394326181,1763454437110,-440.4335205,0.00021744,2]
[394326182,1763454437132,-271.23673966,0.00021775,2]
[394326193,1763454477869,-1137.44206913,0.00018,2]
[394326194,1763454481173,-307.09728476,0.00018,2]
[394326197,1763454484184,637.4396871,0.00019,10]
[394326219,1763454559094,-307.09728476,0.0001782,2]
[394326220,1763454559196,-1775.75583074,0.00018,2]
[394326221,1763454559220,-5000.0,0.00021557,10]
[394326222,1763454559239,-465.14724723,0.00021675,2]
[394326223,1763454559260,-727.76326034,0.00021775,2]
[394326224,1763454559280,-150.0,0.00021775,2]
[394326225,1763454559300,-202.966829,0.00021776,2]
[394326226,1763454559320,-972.62807475,0.0002276,10]
[394326227,1763454572137,-388.98214059,0.00022542,2]
[394326263,1763454632277,-300.0,0.00022541,2]
[394326264,1763454632289,-1200.0,0.00022541,2]
[394326265,1763454632300,-300.0,0.00022541,2]
[394326269,1763454632420,-11346.12260593,0.00022542,2]
[394326270,1763454632431,-3356.04777976,0.0002267,2]
[394326271,1763454632440,-1249.0,0.0002276,10]
[394326272,1763454632449,-2381.76,0.0002276,10]
[394326273,1763454632458,-336.90044997,0.00022769,2]
[394326274,1763454632467,-500.0,0.00022769,2]
[394326275,1763454632475,-500.0,0.0002277,2]
[394326276,1763454632484,-500.0,0.0002277,2]
[394326277,1763454632493,-389.99479004,0.0002277,2]
[394326278,1763454632502,-500.0,0.0002277,2]
[394326279,1763454632511,-500.0,0.0002277,2]
[394326280,1763454632520,-500.0,0.0002277,2]
[394326281,1763454632528,-500.0,0.0002277,2]
[394326282,1763454632540,-500.0,0.0002277,2]
[394326283,1763454632550,-500.0,0.0002277,2]
[394326284,1763454632558,-500.0,0.0002277,2]
[394326285,1763454632567,-500.0,0.0002277,2]
[394326286,1763454632576,-500.0,0.0002277,2]
[394326287,1763454632585,-500.0,0.0002277,2]
[394326288,1763454632594,-500.0,0.0002277,2]
[394326289,1763454632604,-500.0,0.0002277,2]
[394326290,1763454632613,-500.0,0.0002277,2]
[394326291,1763454632622,-500.0,0.0002277,2]
[394326292,1763454632631,-500.0,0.0002277,2]
[394326293,1763454632640,-500.0,0.0002277,2]
[394326294,1763454632649,-606.72076,0.0002277,2]
[394326295,1763454632659,-500.0,0.0002277,2]
[394326296,1763454632668,-500.0,0.0002277,2]
[394326297,1763454632678,-500.0,0.0002277,2]
[394326298,1763454632687,-500.0,0.0002277,2]
[394326299,1763454632697,-500.0,0.0002277,2]
[394326300,1763454632706,-500.0,0.0002277,2]
[394326301,1763454632716,-500.0,0.0002277,2]
[394326302,1763454632724,-500.0,0.0002277,2]
[394326303,1763454632734,-500.0,0.0002277,2]
[394326304,1763454632744,-500.0,0.0002277,2]
[394326305,1763454632753,-500.0,0.0002277,2]
[394326306,1763454632762,-500.0,0.0002277,2]
[394326307,1763454632771,-500.0,0.0002277,2]
[394326308,1763454632781,-500.0,0.0002277,2]
[394326309,1763454632792,-500.0,0.0002277,2]
[394326310,1763454632802,-500.0,0.0002277,2]
[394326311,1763454632811,-1229.04131831,0.0002277,2]
[394326312,1763454632821,-500.0,0.0002277,2]
[394326313,1763454632832,-500.0,0.0002277,2]
[394326314,1763454632841,-500.0,0.0002277,2]
[394326315,1763454632850,-500.0,0.0002277,2]
[394326316,1763454632860,-500.0,0.0002277,2]
[394326317,1763454632871,-299.99129877,0.0002277,2]
[394326318,1763454632880,-500.0,0.0002277,2]
[394326319,1763454632890,-500.0,0.0002277,2]
[394326320,1763454632900,-500.0,0.0002277,2]
[394326321,1763454632910,-500.0,0.0002277,2]
[394326322,1763454632920,-500.0,0.0002277,2]
[394326323,1763454632929,-500.0,0.0002277,2]
[394326324,1763454632939,-500.0,0.0002277,2]
[394326325,1763454632949,-500.0,0.0002277,2]
[394326326,1763454632958,-500.0,0.0002277,2]
[394326327,1763454632968,-500.0,0.0002277,2]
[394326328,1763454632977,-500.0,0.0002277,2]
[394326329,1763454632986,-500.0,0.0002277,2]
[394326330,1763454632996,-500.0,0.0002277,2]
[394326331,1763454633005,-500.0,0.0002277,2]
[394326332,1763454633016,-500.0,0.0002277,2]
[394326333,1763454633027,-500.0,0.0002277,2]
[394326334,1763454633035,-500.0,0.0002277,2]
[394326335,1763454633046,-500.0,0.0002277,2]
[394326336,1763454633055,-500.0,0.0002277,2]
[394326337,1763454633063,-500.0,0.0002277,2]
[394326338,1763454633072,-500.0,0.0002277,2]
[394326339,1763454633082,-500.0,0.0002277,2]
[394326340,1763454633093,-500.0,0.0002277,2]
[394326341,1763454633102,-500.0,0.0002277,2]
[394326342,1763454633111,-1229.04131831,0.0002277,2]
[394326343,1763454633121,-500.0,0.0002277,2]
[394326344,1763454633130,-500.0,0.0002277,2]
[394326345,1763454633140,-574.04167017,0.0002277,2]
[394326346,1763454633150,-1229.04131831,0.0002277,2]
[394326347,1763454633159,-1229.04131831,0.0002277,2]
[394326348,1763454633168,-1229.04131831,0.0002277,2]
[394326349,1763454633176,-1229.04131831,0.0002277,2]
[394326350,1763454633185,-500.0,0.0002277,2]
[394326351,1763454633194,-500.0,0.0002277,2]
[394326352,1763454633204,-500.0,0.0002277,2]
[394326353,1763454633213,-500.0,0.0002277,2]
[394326354,1763454633223,-500.0,0.0002277,2]
[394326355,1763454633232,-500.0,0.0002277,2]
[394326356,1763454633241,-500.0,0.0002277,2]
[394326357,1763454633251,-500.0,0.0002277,2]
[394326358,1763454633260,-500.0,0.0002277,2]
[394326359,1763454633270,-500.0,0.0002277,2]
[394326360,1763454633279,-500.0,0.0002277,2]
[394326361,1763454633290,-222.9293095,0.0002277,2]
[394326362,1763454633299,-500.0,0.0002277,2]
[394326363,1763454633308,-500.0,0.0002277,2]
[394326364,1763454633317,-500.0,0.0002277,2]
[394326365,1763454633326,-500.0,0.0002277,2]
[394326366,1763454633335,-500.0,0.0002277,2]
[394326367,1763454633345,-500.0,0.0002277,2]
[394326368,1763454633354,-500.0,0.0002277,2]
[394326369,1763454633364,-500.0,0.0002277,2]
[394326370,1763454633373,-500.0,0.0002277,2]
[394326371,1763454633384,-500.0,0.0002277,2]
[394326372,1763454633394,-500.0,0.0002277,2]
[394326373,1763454633403,-500.0,0.0002277,2]
[394326374,1763454633412,-500.0,0.0002277,2]
[394326375,1763454633421,-500.0,0.0002277,2]
[394326376,1763454633431,-500.0,0.0002277,2]
[394326377,1763454633440,-500.0,0.0002277,2]
[394326378,1763454633462,-500.0,0.0002277,2]
[394326379,1763454633472,-500.0,0.0002277,2]
[394326380,1763454633482,-500.0,0.0002277,2]
[394326381,1763454633491,-500.0,0.0002277,2]
[394326382,1763454633501,-500.0,0.0002277,2]
[394326383,1763454633510,-500.0,0.0002277,2]
[394326384,1763454633520,-500.0,0.0002277,2]
[394326385,1763454633530,-450.0,0.0002277,2]
[394326386,1763454633541,-500.0,0.0002277,2]
[394326387,1763454633551,-500.0,0.0002277,2]
[394326388,1763454633561,-500.0,0.0002277,2]
[394326389,1763454633572,-500.0,0.0002277,2]
[394326390,1763454633582,-500.0,0.0002277,2]
[394326391,1763454633591,-500.0,0.0002277,2]
[394326392,1763454633602,-500.0,0.0002277,2]
[394326393,1763454633611,-500.0,0.0002277,2]
[394326394,1763454633623,-500.0,0.0002277,2]
[394326395,1763454633635,-500.0,0.0002277,2]
[394326396,1763454633645,-1778.5528583,0.0002277,2]
[394326397,1763454633655,-1778.5528583,0.0002277,2]
[394326398,1763454633664,-1778.5528583,0.0002277,2]
[394326399,1763454633674,-1778.5528583,0.0002277,2]
[394326400,1763454633684,-1778.5528583,0.0002277,2]
[394326401,1763454633694,-500.0,0.0002277,2]
[394326402,1763454633704,-500.0,0.0002277,2]
[394326403,1763454633713,-500.0,0.0002277,2]
[394326404,1763454633722,-500.0,0.0002277,2]
[394326405,1763454633731,-500.0,0.0002277,2]
[394326406,1763454633740,-500.0,0.0002277,2]
[394326407,1763454633749,-500.0,0.0002277,2]
[394326408,1763454633759,-500.0,0.0002277,2]
[394326409,1763454633768,-371.25477207,0.0002277,2]
[394326410,1763454633779,-500.0,0.0002277,2]
[394326411,1763454633789,-500.0,0.0002277,2]
[394326412,1763454633799,-500.0,0.0002277,2]
[394326413,1763454633808,-500.0,0.0002277,2]
[394326414,1763454633817,-500.0,0.0002277,2]
[394326415,1763454633826,-500.0,0.0002277,2]
[394326416,1763454633836,-500.0,0.0002277,2]
[394326417,1763454633847,-500.0,0.0002277,2]
[394326418,1763454633857,-500.0,0.0002277,2]
[394326419,1763454633869,-500.0,0.0002277,2]
[394326420,1763454633879,-500.0,0.0002277,2]
[394326421,1763454633889,-137.34484172,0.0002277,2]
[394326422,1763454633905,-362.65515828,0.0002277,2]
[394326423,1763454633914,-592.31069494,0.0002277,2]
[394326424,1763454633924,-455.75923067,0.0002277,2]
[394326425,1763454633954,-44.24076933,0.0002277,2]
[394326426,1763454633964,-500.0,0.0002277,2]
[394326427,1763454633974,-297.36263137,0.0002277,2]
[394326428,1763454634004,-202.63736863,0.0002277,2]
[394326429,1763454634015,-284.0291593,0.0002277,2]
[394326436,1763454638121,-1984.8,0.0002276,10]
[394326437,1763454638131,-500.0,0.00022769,2]
[394326438,1763454638141,-500.0,0.00022769,2]
[394326439,1763454638151,-500.0,0.00022769,2]
[394326440,1763454638160,-197.20507577,0.00022769,2]
[394326441,1763454638170,-500.0,0.00022769,2]
[394326442,1763454638179,-50000.0,0.0002277,2]
[394326443,1763454638301,-500.0,0.00022779,2]
[394326444,1763454638311,-905.89894855,0.00022779,2]
[394326445,1763454638320,-3068.74,0.000228,7]
[394326446,1763454638330,-167.91,0.000228,7]
[394326447,1763454638340,-511.68451233,0.00023053,2]
[394326448,1763454638350,-600.0,0.00023233,20]
[394326449,1763454638359,-1563.8054865,0.00023309,2]
[394326450,1763454638369,-278.30241749,0.00023775,2]
[394326451,1763454638379,-500.0,0.00023837,2]
[394326452,1763454638389,-8282.33344757,0.00024142,2]
[394326453,1763454638399,-500.0,0.00024385,2]
[394326454,1763454638408,-1680.0,0.00024595,2]
[394326455,1763454638418,-151.0,0.00024658,7]
[394326456,1763454638429,-155.485935,0.00024658,7]
[394326457,1763454638447,-175.918206,0.00024658,7]
[394326458,1763454638456,-151.0,0.00024658,7]
[394326459,1763454638465,-154.822208,0.00024658,7]
[394326460,1763454638475,-151.0,0.00024658,7]
[394326461,1763454638484,-8495.45144685,0.000249,2]
[394326462,1763454638493,-408.14123647,0.00025,2]
[394326463,1763454638502,-802.79830094,0.000253,2]
[394326464,1763454638512,-402.14480551,0.000253,2]
[394326465,1763454638521,-720.0,0.00025557,20]
[394326466,1763454638531,-1955.06025682,0.00025841,2]
[394326467,1763454638540,-400.77541225,0.00025888,2]
[394326468,1763454638552,-1652.06421941,0.00026,30]
[394326469,1763454638561,-199.71325752,0.0002739,2]
[394326470,1763454638571,-150.0,0.0002739,2]
[394326471,1763454638581,-17020.96057599,0.000275,2]
[394326472,1763454638591,-864.0,0.00028113,30]